Workbook

Sheet Invulsheet
A2: Sla dit bestand op uw pc op als excel bestand met macro's (*.xlsm). Bij starten vraagt Excel: Macro's inschakelen? Ja
A3: Data in blauwe kolommen kan ingevuld worden
A4: Oranje velden worden automatisch ingevuld, daar zitten formules achter
A5: Bij invullen volgend nummer + enter komt er automatisch een nieuwe regel met bijbehorende formules
A6: Door op vernieuwen te drukken worden de achterliggende tabbladen en grafieken automatisch bijgewerkt
A7: Bedrijfsnr | B7: UBN | C7: Naam | D7: Dierenarts | E7: Robot | F7: Biologisch | G7: Vaccinatie | H7: Totaal aantal koeien | I7: DDD Mastitis injectoren | J7: DDD Droogzetters | K7: DDD Injectie | L7: DDD Bedrijf | M7: DDD Bedrijf groen | N7: DDD Bedrijf oranje | O7: DDD Bedrijf rood | P7: DDD Droogzetters groen | Q7: DDD Droogzetters oranje | R7: DDD Droogzetters rood | S7: DDD Mastitis injectoren groen | T7: DDD Mastitis injectoren oranje | U7: DDD Mastitis injectoren rood | V7: Avuloxil aantal injectoren | W7: Avuloxil behandelingen (3/beh) | X7: Ubrolexin aantal injectoren | Y7: Ubrolexin behandelingen (2/beh) | Z7: Albiotic aantal injectoren | AA7: Albiotic behandelingen (3/beh) | AB7: Orbenin lactation aantal injectoren | AC7: Orbenin lactation behandelingen (3/beh) | AD7: Ubropen aantal injectoren | AE7: Ubropen behandelingen (3/beh) | AF7: Totaal aantal behandelingen (Medirund) | AG7: % Mastitis behandeling (obv Medirund) | AH7: # Mastitis behandeling eigen registratie | AI7: % Mastitis behandeling eigen registratie | AJ7: Aantal BO/jaar | AK7: % 1e keus uierinjector | AL7: % 2e keus uierinjector | AM7: Orbenin Dry Cow aantal injectoren | AN7: Orbenin Dry Cow aantal koeien | AO7: Orbenin Extra Dry Cow aantal injectoren | AP7: Orbenin Extra Dry Cow aantal koeien | AQ7: Ubrostar Dry Cow aantal injectoren | AR7: Ubrostar Dry Cow aantal koeien | AS7: Totaal aantal koeien drooggezet | AT7: % koeien drooggezet | AU7: Orbeseal aantal injectoren | AV7: Orbeseal aantal koeien | AW7: Ubroseal aantal injectoren | AX7: Ubroseal aantal koeien | AY7: Totaal aantal koeien gesealed | AZ7: % koeien gesealed | BA7: Datum MPR | BB7: Tankcelgetal | BC7: Groen (<250) | BD7: Oranje (>250<350) | BE7: Rood (>350) | BF7: % Nieuw verhoogd | BG7: % Verhoogd | BH7: DS % Nieuwe infecties | BI7: DS % Genezen
A8: 1 | B8: 12345 | C8: van Aa | D8: AA | E8: Ja | F8: Nee | G8: Startvac | H8: 80 | I8: 0.11 | J8: 0 | K8: 0.05 | L8: 0.14 | M8: =IF(AND(ISNUMBER(L8),L8<2),L8,"") -> 0.14 | N8: =IF(AND(ISNUMBER(L8),L8>2,L8<=4.99),L8,"") ->  | O8: =IF(AND(ISNUMBER(L8),L8>5),L8,"") ->  | P8: =IF(AND(ISNUMBER(J8),J8<1),J8,"") -> 0 | Q8: =IF(AND(ISNUMBER(J8),J8>1,J8<=2.4),J8,"") ->  | R8: =IF(AND(ISNUMBER(J8),J8>2.4),J8,"") ->  | S8: =IF(AND(ISNUMBER(I8),I8<0.6),I8,"") -> 0.11 | T8: =IF(AND(ISNUMBER(I8),I8>0.6,I8<=1.4),I8,"") ->  | U8: =IF(AND(ISNUMBER(I8),I8>1.4),I8,"") ->  | V8: 24 | W8: =V8/3 -> 8 | X8: 0 | Y8: =X8/2 -> 0 | Z8: 0 | AA8: =Z8/3 -> 0 | AB8: 0 | AC8: =AB8/3 -> 0 | AD8: 0 | AE8: =AD8/3 -> 0 | AF8: =AE8+AC8+AA8+Y8+W8 -> 8 | AG8: =IFERROR(AF8/H8*100, 0) -> 10 | AI8: =IFERROR(AH8/H8*100, 0) -> 0 | AJ8: 1 | AK8: =IFERROR((AC8+AE8)/AF8*100, 0 ) -> 0 | AL8: =IFERROR( (W8+Y8+AA8)/AF8*100, 0 ) -> 100 | AM8: 0 | AN8: =AM8/4 -> 0 | AO8: 0 | AP8: =AO8/4 -> 0 | AR8: =AQ8/4 -> 0 | AS8: =AN8+AP8+AR8 -> 0 | AT8: =IFERROR(AS8/H8*100, 0) -> 0 | AU8: 0 | AV8: =AU8/4 -> 0 | AW8: 0 | AX8: =AW8/4 -> 0 | AY8: =AV8+AX8 -> 0 | AZ8: =IFERROR(AY8/H8*100, 0) -> 0 | BB8: 338 | BC8: =IF(AND(ISNUMBER(BB8),BB8<250),BB8,"") ->  | BD8: =IF(AND(ISNUMBER(BB8),BB8>250,BB8<=300),BB8,"") ->  | BE8: =IF(AND(ISNUMBER(BB8),BB8>300),BB8,"") -> 338 | BF8: 13 | BG8: 25 | BH8: 31 | BI8: 58
A9: 2 | B9: 12346 | C9: van Dee | D9: BB | E9: Nee | F9: Nee | G9: Startvac | H9: 87 | I9: 0.33 | J9: 1.56 | K9: 1.12 | L9: 3.23 | M9: =IF(AND(ISNUMBER(L9),L9<2),L9,"") ->  | N9: =IF(AND(ISNUMBER(L9),L9>2,L9<=4.99),L9,"") -> 3.23 | O9: =IF(AND(ISNUMBER(L9),L9>5),L9,"") ->  | P9: =IF(AND(ISNUMBER(J9),J9<1),J9,"") ->  | Q9: 1.56 | S9: 0.33 | V9: 36 | W9: =V9/3 -> 12 | X9: 20 | Y9: =X9/2 -> 10 | Z9: 0 | AA9: =Z9/3 -> 0 | AB9: 0 | AC9: =AB9/3 -> 0 | AD9: 0 | AE9: =AD9/3 -> 0 | AF9: 22 | AG9: =IFERROR(AF9/H9*100, 0) -> 25.28735632 | AI9: =IFERROR(AH9/H9*100, 0) -> 0 | AJ9: 2 | AK9: 0 | AL9: 100 | AM9: 0 | AN9: =AM9/4 -> 0 | AO9: 180 | AP9: 45 | AR9: 0 | AS9: 45 | AT9: =IFERROR(AS9/H9*100, 0) -> 51.72413793 | AU9: 0 | AV9: 0 | AW9: 0 | AX9: =AW9/4 -> 0 | AY9: 0 | AZ9: =IFERROR(AY9/H9*100, 0) -> 0 | BB9: 350 | BC9: =IF(AND(ISNUMBER(BB9),BB9<250),BB9,"") ->  | BD9: =IF(AND(ISNUMBER(BB9),BB9>250,BB9<=300),BB9,"") ->  | BE9: =IF(AND(ISNUMBER(BB9),BB9>300),BB9,"") -> 350 | BF9: 6 | BG9: 15 | BH9: 13 | BI9: 57
A10: 3 | B10: 12347 | C10: Berkers | D10: CC | E10: Nee | F10: Nee | G10: Nee | H10: 151 | I10: 0.29 | J10: 0.89 | K10: 0.78 | L10: 2.07 | N10: 2.07 | P10: 0.89 | S10: 0.29 | V10: 27 | W10: 9 | X10: 0 | Y10: 0 | Z10: 0 | AA10: 0 | AB10: 24 | AC10: 8 | AD10: 0 | AE10: 0 | AF10: 17 | AG10: 11.25827815 | AI10: 0 | AJ10: 3 | AK10: 47.05882353 | AL10: 52.94117647 | AM10: 0 | AN10: 0 | AO10: 192 | AP10: 48 | AR10: 0 | AS10: 48 | AT10: 31.78807947 | AU10: 336 | AV10: 84 | AW10: 20 | AX10: 5 | AY10: 89 | AZ10: 58.94039735 | BB10: 64 | BC10: 64 | BF10: 4 | BG10: 4 | BH10: 8 | BI10: 91
A11: 4 | B11: 12348 | C11: Dirksen | D11: DD | E11: Nee | F11: Nee | G11: Nee | H11: 95 | I11: 0.14 | J11: 1.67 | K11: 0.3 | L11: 2.11 | N11: 2.11 | Q11: 1.67 | S11: 0.14 | V11: 36 | W11: 12 | X11: 0 | Y11: 0 | Z11: 0 | AA11: 0 | AB11: 0 | AC11: 0 | AD11: 0 | AE11: 0 | AF11: 12 | AG11: 12.63157895 | AI11: 0 | AJ11: 4 | AK11: 0 | AL11: 100 | AM11: 126 | AN11: 31.5 | AO11: 0 | AP11: 0 | AR11: 0 | AS11: 31.5 | AT11: 33.15789474 | AU11: 0 | AV11: 0 | AW11: 0 | AX11: 0 | AY11: 0 | AZ11: 0 | BB11: 271 | BD11: 271 | BF11: 13 | BG11: 19 | BH11: 24 | BI11: 77
A12: 5 | B12: 12349 | C12: Hoogeveen | D12: AA | E12: Nee | F12: Nee | G12: Nee | H12: 110 | I12: 0.54 | J12: 0.96 | K12: 0.44 | L12: 1.95 | M12: 1.95 | P12: 0.96 | S12: 0.54 | V12: 0 | W12: 0 | X12: 80 | Y12: 40 | Z12: 0 | AA12: 0 | AB12: 0 | AC12: 0 | AD12: 0 | AE12: 0 | AF12: 40 | AG12: 36.36363636 | AI12: 0 | AJ12: 5 | AK12: 0 | AL12: 100 | AM12: 0 | AN12: 0 | AO12: 144 | AP12: 36 | AR12: 0 | AS12: 36 | AT12: 32.72727273 | AU12: 360 | AV12: 90 | AW12: 0 | AX12: 0 | AY12: 90 | AZ12: 81.81818182 | BB12: 226 | BC12: 226 | BF12: 9 | BG12: 21 | BH12: 31 | BI12: 72
A13: 6 | B13: 12350 | C13: Geertshuis | D13: BB | E13: Nee | F13: Nee | G13: Nee | H13: 125 | I13: 0.16 | J13: 1.05 | K13: 0.52 | L13: 1.73 | M13: 1.73 | Q13: 1.05 | S13: 0.16 | V13: 0 | W13: 0 | X13: 0 | Y13: 0 | Z13: 0 | AA13: 0 | AB13: 12 | AC13: 4 | AD13: 0 | AE13: 0 | AF13: 4 | AG13: 3.2 | AI13: 0 | AJ13: 2 | AK13: 100 | AL13: 0 | AM13: 0 | AN13: 0 | AO13: 60 | AP13: 15 | AR13: 0 | AS13: 15 | AT13: 12 | AU13: 360 | AV13: 90 | AW13: 0 | AX13: 0 | AY13: 90 | AZ13: 72 | BB13: 189 | BC13: 189 | BF13: 13 | BG13: 19 | BH13: 24 | BI13: 77
A14: 7 | B14: 12370 | C14: Groot Nibbelink | D14: BB | E14: Ja | F14: Nee | G14: Startvac + Ubac | H14: 91 | I14: 0 | J14: 1.19 | K14: 0.25 | L14: 1.44 | M14: 1.44 | Q14: 1.19 | S14: 0 | V14: 0 | W14: 0 | X14: 0 | Y14: 0 | Z14: 0 | AA14: 0 | AB14: 0 | AC14: 0 | AD14: 0 | AE14: 0 | AF14: 0 | AG14: 0 | AI14: 0 | AJ14: 12 | AK14: 0 | AL14: 0 | AM14: 0 | AN14: 0 | AO14: 60 | AP14: 15 | AR14: 0 | AS14: 15 | AT14: 16.48351648 | AU14: 12 | AV14: 3 | AW14: 0 | AX14: 0 | AY14: 3 | AZ14: 3.296703297 | BB14: 106 | BC14: 106 | BF14: 6 | BG14: 16 | BH14: 15 | BI14: 90
A15: 8 | B15: 12371 | C15: Timmermans | D15: CC | E15: Ja | F15: Nee | G15: Ubac | H15: 70 | I15: 0.27 | J15: 1.36 | K15: 0.33 | L15: 1.97 | M15: 1.97 | Q15: 1.36 | S15: 0.27 | V15: 48 | W15: 16 | X15: 0 | Y15: 0 | Z15: 0 | AA15: 0 | AB15: 0 | AC15: 0 | AD15: 0 | AE15: 0 | AF15: 16 | AG15: 22.85714286 | AI15: 0 | AJ15: 5 | AK15: 0 | AL15: 100 | AM15: 0 | AN15: 0 | AO15: 60 | AP15: 15 | AR15: 0 | AS15: 15 | AT15: 21.42857143 | AU15: 240 | AV15: 60 | AW15: 0 | AX15: 0 | AY15: 60 | AZ15: 85.71428571 | BB15: 96 | BC15: 96 | BF15: 6 | BG15: 14 | BH15: 21 | BI15: 67
A16: 9 | B16: 12372 | C16: de Boer | D16: DD | E16: Ja | F16: Nee | G16: Ubac | H16: 178 | I16: 1.12 | J16: 1.01 | K16: 1.89 | L16: 4.12 | N16: 4.12 | Q16: 1.01 | T16: 1.12 | V16: 0 | W16: 0 | X16: 240 | Y16: 120 | Z16: 1 | AA16: 0.3333333333 | AB16: 12 | AC16: 4 | AD16: 0 | AE16: 0 | AF16: 124.3333333 | AG16: 69.85018727 | AI16: 0 | AJ16: 0 | AK16: 3.217158177 | AL16: 96.78284182 | AM16: 0 | AN16: 0 | AO16: 60 | AP16: 15 | AR16: 0 | AS16: 15 | AT16: 8.426966292 | AU16: 360 | AV16: 90 | AW16: 0 | AX16: 0 | AY16: 90 | AZ16: 50.56179775 | BB16: 145 | BC16: 145 | BF16: 5 | BG16: 12 | BH16: 13 | BI16: 73
A17: 10 | B17: 12373 | C17: van Bree | D17: AA | E17: ja | F17: Nee | G17: Startvac | H17: 107 | I17: 0.32 | J17: 0.81 | K17: 0.15 | L17: 1.28 | M17: 1.28 | P17: 0.81 | S17: 0.32 | V17: 0 | W17: 0 | X17: 0 | Y17: 0 | Z17: 0 | AA17: 0 | AB17: 24 | AC17: 8 | AD17: 0 | AE17: 0 | AF17: 8 | AG17: 7.476635514 | AI17: 0 | AJ17: 4 | AK17: 100 | AL17: 0 | AM17: 24 | AN17: 6 | AO17: 60 | AP17: 15 | AR17: 0 | AS17: 21 | AT17: 19.62616822 | AU17: 0 | AV17: 0 | AW17: 0 | AX17: 0 | AY17: 0 | AZ17: 0 | BB17: 219 | BC17: 219 | BF17: 5 | BG17: 11 | BH17: 21 | BI17: 82
A18: 11 | B18: 12374 | C18: Boer30 | D18: CC | E18: ja | F18: Nee | G18: Nee | H18: 68 | I18: 0.72 | J18: 1.27 | K18: 0.7 | L18: 2.72 | N18: 2.72 | Q18: 1.27 | T18: 0.72 | V18: 0 | W18: 0 | X18: 20 | Y18: 10 | Z18: 0 | AA18: 0 | AB18: 24 | AC18: 8 | AD18: 0 | AE18: 0 | AF18: 18 | AG18: 26.47058824 | AI18: 0 | AJ18: 1 | AK18: 44.44444444 | AL18: 55.55555556 | AM18: 0 | AN18: 0 | AO18: 60 | AP18: 15 | AR18: 0 | AS18: 15 | AT18: 22.05882353 | AU18: 0 | AV18: 0 | AW18: 0 | AX18: 0 | AY18: 0 | AZ18: 0 | BB18: 148 | BC18: 148 | BF18: 14 | BG18: 23 | BH18: 11 | BI18: 73
A19: 12 | B19: 125893 | C19: BoerHenk | D19: BB | E19: Ja | F19: Ja | G19: Nee | H19: 178 | I19: 0.5 | J19: 0.5 | K19: 0.2 | L19: 1.4 | M19: =IF(AND(ISNUMBER(L19),L19<2),L19,"") -> 1.4 | N19: =IF(AND(ISNUMBER(L19),L19>2,L19<=4.99),L19,"") ->  | O19: =IF(AND(ISNUMBER(L19),L19>5),L19,"") ->  | P19: =IF(AND(ISNUMBER(J19),J19<1),J19,"") -> 0.5 | Q19: =IF(AND(ISNUMBER(J19),J19>1,J19<=2.4),J19,"") ->  | R19: =IF(AND(ISNUMBER(J19),J19>2.4),J19,"") ->  | S19: =IF(AND(ISNUMBER(I19),I19<0.6),I19,"") -> 0.5 | T19: =IF(AND(ISNUMBER(I19),I19>0.6,I19<=1.4),I19,"") ->  | U19: =IF(AND(ISNUMBER(I19),I19>1.4),I19,"") ->  | V19: 24 | W19: =V19/3 -> 8 | X19: 20 | Y19: =X19/2 -> 10 | Z19: 48 | AA19: =Z19/3 -> 16 | AB19: 24 | AC19: =AB19/3 -> 8 | AD19: 0 | AE19: =AD19/3 -> 0 | AF19: =AE19+AC19+AA19+Y19+W19 -> 42 | AG19: 23.59550562 | AI19: 0 | AJ19: 6 | AK19: =IFERROR((AC19+AE19)/AF19*100, 0 ) -> 19.04761905 | AL19: =IFERROR( (W19+Y19+AA19)/AF19*100, 0 ) -> 80.95238095 | AM19: 24 | AN19: =AM19/4 -> 6 | AO19: 60 | AP19: =AO19/4 -> 15 | AR19: =AQ19/4 -> 0 | AS19: =AN19+AP19+AR19 -> 21 | AT19: 11.79775281 | AU19: 240 | AV19: 60 | AW19: 0 | AX19: =AW19/4 -> 0 | AY19: =AV19+AX19 -> 60 | AZ19: 33.70786517 | BB19: 178 | BC19: 178 | BE19: =IF(AND(ISNUMBER(BB19),BB19>300),BB19,"") ->  | BF19: 15 | BG19: 5 | BH19: 10 | BI19: 80
A20: 13 | B20: 125876 | C20: BoerKlaas | D20: BB | E20: Nee | F20: Nee | G20: Startvac | H20: 220 | I20: 0.5 | J20: 0.5 | K20: 0.2 | L20: 1.4 | M20: =IF(AND(ISNUMBER(L20),L20<2),L20,"") -> 1.4 | N20: =IF(AND(ISNUMBER(L20),L20>2,L20<=4.99),L20,"") ->  | O20: =IF(AND(ISNUMBER(L20),L20>5),L20,"") ->  | P20: =IF(AND(ISNUMBER(J20),J20<1),J20,"") -> 0.5 | Q20: =IF(AND(ISNUMBER(J20),J20>1,J20<=2.4),J20,"") ->  | R20: =IF(AND(ISNUMBER(J20),J20>2.4),J20,"") ->  | S20: =IF(AND(ISNUMBER(I20),I20<0.6),I20,"") -> 0.5 | T20: =IF(AND(ISNUMBER(I20),I20>0.6,I20<=1.4),I20,"") ->  | U20: =IF(AND(ISNUMBER(I20),I20>1.4),I20,"") ->  | V20: 24 | W20: =V20/3 -> 8 | X20: 20 | Y20: =X20/2 -> 10 | Z20: 48 | AA20: =Z20/3 -> 16 | AB20: 24 | AC20: =AB20/3 -> 8 | AD20: 0 | AE20: =AD20/3 -> 0 | AF20: =AE20+AC20+AA20+Y20+W20 -> 42 | AG20: =IFERROR(AF20/H20*100, 0) -> 19.09090909 | AI20: =IFERROR(AH20/H20*100, 0) -> 0 | AJ20: 6 | AK20: =IFERROR((AC20+AE20)/AF20*100, 0 ) -> 19.04761905 | AL20: =IFERROR( (W20+Y20+AA20)/AF20*100, 0 ) -> 80.95238095 | AM20: 24 | AN20: =AM20/4 -> 6 | AO20: 60 | AP20: =AO20/4 -> 15 | AR20: =AQ20/4 -> 0 | AS20: =AN20+AP20+AR20 -> 21 | AT20: =IFERROR(AS20/H20*100, 0) -> 9.545454545 | AU20: 240 | AV20: =AU20/4 -> 60 | AW20: 0 | AX20: =AW20/4 -> 0 | AY20: =AV20+AX20 -> 60 | AZ20: =IFERROR(AY20/H20*100, 0) -> 27.27272727 | BB20: 178 | BC20: 178 | BE20: =IF(AND(ISNUMBER(BB20),BB20>300),BB20,"") ->  | BF20: 15 | BG20: 5 | BH20: 10 | BI20: 80
A21: 14 | B21: 12378 | C21: BoerJan | D21: AA | E21: Ja | F21: Nee | G21: Startvac | H21: 300 | I21: 0.25 | J21: 2.23 | K21: 1.5 | L21: 3.75 | M21: =IF(AND(ISNUMBER(L21),L21<2),L21,"") ->  | N21: =IF(AND(ISNUMBER(L21),L21>2,L21<=4.99),L21,"") -> 3.75 | O21: =IF(AND(ISNUMBER(L21),L21>5),L21,"") ->  | P21: =IF(AND(ISNUMBER(J21),J21<1),J21,"") ->  | Q21: =IF(AND(ISNUMBER(J21),J21>1,J21<=2.4),J21,"") -> 2.23 | R21: =IF(AND(ISNUMBER(J21),J21>2.4),J21,"") ->  | S21: =IF(AND(ISNUMBER(I21),I21<0.6),I21,"") -> 0.25 | T21: =IF(AND(ISNUMBER(I21),I21>0.6,I21<=1.4),I21,"") ->  | U21: =IF(AND(ISNUMBER(I21),I21>1.4),I21,"") ->  | V21: 48 | W21: =V21/3 -> 16 | X21: 20 | Y21: =X21/2 -> 10 | Z21: 24 | AA21: =Z21/3 -> 8 | AB21: 0 | AC21: =AB21/3 -> 0 | AD21: 0 | AE21: =AD21/3 -> 0 | AF21: =AE21+AC21+AA21+Y21+W21 -> 34 | AG21: =IFERROR(AF21/H21*100, 0) -> 11.33333333 | AI21: =IFERROR(AH21/H21*100, 0) -> 0 | AJ21: 12 | AK21: =IFERROR((AC21+AE21)/AF21*100, 0 ) -> 0 | AL21: =IFERROR( (W21+Y21+AA21)/AF21*100, 0 ) -> 100 | AM21: 240 | AN21: =AM21/4 -> 60 | AO21: 480 | AP21: =AO21/4 -> 120 | AR21: =AQ21/4 -> 0 | AS21: =AN21+AP21+AR21 -> 180 | AT21: =IFERROR(AS21/H21*100, 0) -> 60 | AU21: 480 | AV21: =AU21/4 -> 120 | AW21: 0 | AX21: =AW21/4 -> 0 | AY21: =AV21+AX21 -> 120 | AZ21: =IFERROR(AY21/H21*100, 0) -> 40 | BB21: 180 | BC21: 180 | BE21: =IF(AND(ISNUMBER(BB21),BB21>300),BB21,"") ->  | BF21: 6 | BG21: 18 | BH21: 25 | BI21: 90

Sheet Dropdownmenu
A1: Dierenarts | B1: Robot | C1: Biologisch | D1: Vaccinatie | F1: Normen | G1: Groen | H1: Oranje | I1: Rood
A2: AA | B2: Ja | C2: Ja | D2: Startvac | F2: Tankcelgetal | G2: ≤175 | H2: 176-274 | I2: ≥275
A3: BB | B3: Nee | C3: Nee | D3: Ubac | F3: % verhoogd celgetal | G3: <15 | I3: ≥15
A4: CC | D4: Startvac + Ubac | F4: % nieuw verhoogd celgetal | G4: <5 | H4: 5-10 | I4: ≥10
A5: DD | D5: Nee | F5: % nieuwe infectie uit droogstand | G5: <10 | H5: 10-15 | I5: ≥15
F6: % genezen uit droogstand | G6: ≥90 | H6: 81-89 | I6: ≤80
G8: Groen | H8: Oranje | I8: Rood | K8: Landelijk gemidd
F9: DDD mastitis | G9: <0,6 | H9: 0,6-1,4 | I9: ≥1,4 | J9: Gebruik van mastitisinjectoren in DDDAF (dieren >2 jaar) | K9: 0.44 | M9: P90 1,4
F10: DDD droogzetters | G10: <1 | H10: 1-2,4 | I10: ≥2,4 | J10: Gebruik van droogzetters in DDDAF (dieren >2 jaar) | K10: 0.91 | M10: P90 2,4
F11: DDD injectie | G11: <0,5 | H11: 0,5-1 | I11: >1 | J11: Gebruik van injecte in DDDAF (dieren >2 jaar) | K11: 0.72
F12: DDD | G12: <2 | H12: 2-4,99 | I12: ≥5 | J12: Totaal gebruik in DDD | K12: 2.13 | M12: P90 4,0 | N12: Actiewaarde>5
G14: Groen | H14: Oranje | I14: Rood
F15: % mastitisbehandeling obv Medirund | G15: <20% | H15: 20-29 | I15: ≥30% | J15: Rollende jaargemiddelde klinische mastitisincidentie (CMI) | K15: 29.7

Sheet Veehouder
B1: Uiergezondheidsprofiel
A2: Bedrijfsnr | B2: 3
A3: UBN | B3: =_xlfn.XLOOKUP($B$2, tblInvul[Bedrijfsnr], tblInvul[UBN]) -> 12347
A4: Naam | B4: =_xlfn.XLOOKUP($B$2, tblInvul[Bedrijfsnr], tblInvul[Naam]) -> Berkers
A5: Dierenarts | B5: =_xlfn.XLOOKUP($B$2, tblInvul[Bedrijfsnr], tblInvul[Dierenarts]) -> CC
A6: Kengetal | B6: Bedrijf | C6: Laagste 25% (P25) | D6: Gemiddeld | E6: Hoogste 25% (P75)
A7: Totaal aantal koeien | B7: =_xlfn.XLOOKUP($B$2, tblInvul[Bedrijfsnr], tblInvul[Totaal aantal koeien]) -> 151 | C7: =_xlfn.PERCENTILE.INC(tblInvul[Totaal aantal koeien], 0.25) -> 88 | D7: =AVERAGE(tblInvul[Totaal aantal koeien]) -> 132.8571429 | E7: =_xlfn.PERCENTILE.INC(tblInvul[Totaal aantal koeien], 0.75) -> 171.25
A9: DDD Bedrijf | B9: =_xlfn.XLOOKUP($B$2, tblInvul[Bedrijfsnr], tblInvul[DDD Bedrijf]) -> 2.07 | C9: =_xlfn.PERCENTILE.INC(tblInvul[DDD Bedrijf], 0.25) -> 1.41 | D9: =AVERAGE(Invulsheet!L8:L18) -> 2.069090909 | E9: =_xlfn.PERCENTILE.INC(Invulsheet!L8:L18, 0.75) -> 2.415
A10: DDD Mastitis injectoren | B10: =_xlfn.XLOOKUP($B$2, tblInvul[Bedrijfsnr], tblInvul[DDD Mastitis injectoren]) -> 0.29 | C10: =_xlfn.PERCENTILE.INC(tblInvul[DDD Mastitis injectoren], 0.25) -> 0.1825 | D10: =AVERAGE(tblInvul[DDD Mastitis injectoren]) -> 0.375 | E10: =_xlfn.PERCENTILE.INC(tblInvul[DDD Mastitis injectoren], 0.75) -> 0.5
A11: DDD Droogzetters | B11: =_xlfn.XLOOKUP($B$2, tblInvul[Bedrijfsnr], tblInvul[DDD Droogzetters]) -> 0.89 | C11: =_xlfn.PERCENTILE.INC(tblInvul[DDD Droogzetters], 0.25) -> 0.83 | D11: =AVERAGE(tblInvul[DDD Droogzetters]) -> 1.071428571 | E11: =_xlfn.PERCENTILE.INC(tblInvul[DDD Droogzetters], 0.75) -> 1.3375
A12: DDD Injectie | B12: =_xlfn.XLOOKUP($B$2, tblInvul[Bedrijfsnr], tblInvul[DDD Injectie]) -> 0.78 | C12: =_xlfn.PERCENTILE.INC(tblInvul[DDD Injectie], 0.25) -> 0.2125 | D12: =AVERAGE(tblInvul[DDD Injectie]) -> 0.6021428571 | E12: =_xlfn.PERCENTILE.INC(tblInvul[DDD Injectie], 0.75) -> 0.76
A13: Avuloxil behandelingen (3/beh) | B13: =_xlfn.XLOOKUP($B$2, tblInvul[Bedrijfsnr], tblInvul[Avuloxil behandelingen (3/beh)]) -> 9
A14: Ubropen behandelingen (2/beh) | B14: =_xlfn.XLOOKUP($B$2, tblInvul[Bedrijfsnr], tblInvul[Ubropen behandelingen (3/beh)]) -> 0
A15: Albiotic behandelingen (3/beh) | B15: =_xlfn.XLOOKUP($B$2, tblInvul[Bedrijfsnr], tblInvul[Albiotic behandelingen (3/beh)]) -> 0
A16: Ubrolexin behandelingen (2/beh) | B16: =_xlfn.XLOOKUP($B$2, tblInvul[Bedrijfsnr], tblInvul[Ubrolexin behandelingen (2/beh)]) -> 0
A17: Orbenin lactation behandelingen (3/beh) | B17: =_xlfn.XLOOKUP($B$2, tblInvul[Bedrijfsnr], tblInvul[Orbenin lactation behandelingen (3/beh)]) -> 8
A18: Totaal aantal behandelingen | B18: =_xlfn.XLOOKUP($B$2, tblInvul[Bedrijfsnr], tblInvul[Totaal aantal behandelingen (Medirund)]) -> 17 | C18: =_xlfn.PERCENTILE.INC(tblInvul[Totaal aantal behandelingen (Medirund)], 0.25) -> 9 | D18: =AVERAGE(tblInvul[Totaal aantal behandelingen (Medirund)]) -> 27.66666667 | E18: =_xlfn.PERCENTILE.INC(tblInvul[Totaal aantal behandelingen (Medirund)], 0.75) -> 38.5
A19: % mastitisbehandeling (obv Medirund) | B19: =_xlfn.XLOOKUP($B$2, tblInvul[Bedrijfsnr], tblInvul[% Mastitis behandeling (obv Medirund)]) -> 11.25827815 | C19: =_xlfn.PERCENTILE.INC(tblInvul[% Mastitis behandeling (obv Medirund)], 0.25) -> 10.31456954 | D19: =AVERAGE(tblInvul[% Mastitis behandeling (obv Medirund)]) -> 19.95822512 | E19: =_xlfn.PERCENTILE.INC(tblInvul[% Mastitis behandeling (obv Medirund)], 0.75) -> 24.86439365
A20: Aantal BO/jaar | B20: =_xlfn.XLOOKUP($B$2, tblInvul[Bedrijfsnr], tblInvul[Aantal BO/jaar]) -> 3 | D20: =AVERAGE(tblInvul[Aantal BO/jaar]) -> 4.5
A21: % 1e keus uierinjector | B21: =_xlfn.XLOOKUP($B$2, tblInvul[Bedrijfsnr], tblInvul[% 1e keus uierinjector]) -> 47.05882353 | C21: =_xlfn.PERCENTILE.INC(tblInvul[% 1e keus uierinjector], 0.25) -> 0 | D21: =AVERAGE(tblInvul[% 1e keus uierinjector]) -> 23.77254745 | E21: =_xlfn.PERCENTILE.INC(tblInvul[% 1e keus uierinjector], 0.75) -> 38.0952381
A22: % 2e keus uierinjector | B22: =_xlfn.XLOOKUP($B$2, tblInvul[Bedrijfsnr], tblInvul[% 2e keus uierinjector]) -> 52.94117647 | C22: =_xlfn.PERCENTILE.INC(tblInvul[% 2e keus uierinjector], 0.25) -> 53.59477124 | D22: =AVERAGE(tblInvul[% 2e keus uierinjector]) -> 69.08459541 | E22: =_xlfn.PERCENTILE.INC(tblInvul[% 2e keus uierinjector], 0.75) -> 100
A24: Tankcelgetal | B24: =_xlfn.XLOOKUP($B$2, tblInvul[Bedrijfsnr], tblInvul[Tankcelgetal]) -> 64 | C24: =_xlfn.PERCENTILE.INC(tblInvul[Tankcelgetal], 0.25) -> 145.75 | D24: =AVERAGE(tblInvul[Tankcelgetal]) -> 192 | E24: =_xlfn.PERCENTILE.INC(Invulsheet!BB8:BB18, 0.75) -> 248.5
A25: % koeien drooggezet | B25: =_xlfn.XLOOKUP($B$2, tblInvul[Bedrijfsnr], tblInvul[% koeien drooggezet]) -> 31.78807947 | C25: =_xlfn.PERCENTILE.INC(tblInvul[% koeien drooggezet], 0.25) -> 11.84831461 | D25: =AVERAGE(tblInvul[% koeien drooggezet]) -> 23.62604558 | E25: =_xlfn.PERCENTILE.INC(tblInvul[% koeien drooggezet], 0.75) -> 32.49247441
A26: % koeien gesealed | B26: =_xlfn.XLOOKUP($B$2, tblInvul[Bedrijfsnr], tblInvul[% koeien gesealed]) -> 58.94039735 | C26: =_xlfn.PERCENTILE.INC(tblInvul[% koeien gesealed], 0.25) -> 0 | D26: =AVERAGE(Invulsheet!AZ8:AZ18) -> 32.03012418 | E26: =_xlfn.PERCENTILE.INC(Invulsheet!AZ8:AZ18, 0.75) -> 65.47019868
A27: % nieuw verhoogd | B27: =_xlfn.XLOOKUP($B$2, tblInvul[Bedrijfsnr], tblInvul[% Nieuw verhoogd]) -> 4 | C27: =_xlfn.PERCENTILE.INC(tblInvul[% Nieuw verhoogd], 0.25) -> 6 | D27: =AVERAGE(tblInvul[% Nieuw verhoogd]) -> 9.285714286 | E27: =_xlfn.PERCENTILE.INC(tblInvul[% Nieuw verhoogd], 0.75) -> 13
A28: % verhoogd | B28: =_xlfn.XLOOKUP($B$2, tblInvul[Bedrijfsnr], tblInvul[% Verhoogd]) -> 4 | C28: =_xlfn.PERCENTILE.INC(tblInvul[% Verhoogd], 0.25) -> 11.25 | D28: =AVERAGE(tblInvul[% Verhoogd]) -> 14.78571429 | E28: =_xlfn.PERCENTILE.INC(tblInvul[% Verhoogd], 0.75) -> 19
A30: DS % Genezen | B30: =_xlfn.XLOOKUP($B$2, tblInvul[Bedrijfsnr], tblInvul[DS % Genezen]) -> 91 | C30: =_xlfn.PERCENTILE.INC(tblInvul[DS % Genezen], 0.25) -> 72.25 | D30: =AVERAGE(tblInvul[DS % Genezen]) -> 76.21428571 | E30: =_xlfn.PERCENTILE.INC(tblInvul[DS % Genezen], 0.75) -> 81.5
A31: DS % Nieuwe infecties | B31: =_xlfn.XLOOKUP($B$2, tblInvul[Bedrijfsnr], tblInvul[DS % Nieuwe infecties]) -> 8 | C31: =_xlfn.PERCENTILE.INC(tblInvul[DS % Nieuwe infecties], 0.25) -> 11.5 | D31: =AVERAGE(tblInvul[DS % Nieuwe infecties]) -> 18.35714286 | E31: =_xlfn.PERCENTILE.INC(tblInvul[DS % Nieuwe infecties], 0.75) -> 24

Sheet Veehouder2
A1: Praktijk:
A2: Datum: | B2: =TODAY() -> 2026-04-10
A3: Bedrijfsnr | B3: 3
A4: Dierenarts | B4: =_xlfn.XLOOKUP($B$3, tblInvul[Bedrijfsnr], tblInvul[Dierenarts]) -> CC
A5: Naam veehouder | B5: =_xlfn.XLOOKUP($B$3, tblInvul[Bedrijfsnr], tblInvul[Naam]) -> Berkers
A7: Kengetal | B7: Bedrijf
A8: Totaal aantal koeien | B8: =_xlfn.XLOOKUP($B$3, tblInvul[Bedrijfsnr], tblInvul[Totaal aantal koeien]) -> 151
A9: Tankcelgetal | B9: =_xlfn.XLOOKUP($B$3, tblInvul[Bedrijfsnr], tblInvul[Tankcelgetal]) -> 64
A10: % verhoogd | B10: =_xlfn.XLOOKUP($B$3, tblInvul[Bedrijfsnr], tblInvul[% Verhoogd]) -> 4
A11: % nieuw verhoogd | B11: =_xlfn.XLOOKUP($B$3, tblInvul[Bedrijfsnr], tblInvul[% Nieuw verhoogd]) -> 4
A13: DDD Bedrijf | B13: =_xlfn.XLOOKUP($B$3, tblInvul[Bedrijfsnr], tblInvul[DDD Bedrijf]) -> 2.07
A14: DDD Droogzetters | B14: =_xlfn.XLOOKUP($B$3, tblInvul[Bedrijfsnr], tblInvul[DDD Droogzetters]) -> 0.89
A15: DDD Injectie | B15: =_xlfn.XLOOKUP($B$3, tblInvul[Bedrijfsnr], tblInvul[DDD Injectie]) -> 0.78
A16: DDD Mastitis injectoren | B16: =_xlfn.XLOOKUP($B$3, tblInvul[Bedrijfsnr], tblInvul[DDD Mastitis injectoren]) -> 0.29
A18: Avuloxil behandelingen (3/beh) | B18: =_xlfn.XLOOKUP($B$3, tblInvul[Bedrijfsnr], tblInvul[Avuloxil behandelingen (3/beh)]) -> 9
A19: Ubropen behandelingen (2/beh) | B19: =_xlfn.XLOOKUP($B$3, tblInvul[Bedrijfsnr], tblInvul[Ubropen behandelingen (3/beh)]) -> 0
A20: Ubrolexin behandelingen (2/beh) | B20: =_xlfn.XLOOKUP($B$3, tblInvul[Bedrijfsnr], tblInvul[Ubrolexin behandelingen (2/beh)]) -> 0
A21: Albiotic behandelingen (3/beh) | B21: =_xlfn.XLOOKUP($B$3, tblInvul[Bedrijfsnr], tblInvul[Albiotic behandelingen (3/beh)]) -> 0
A22: Orbenin lactation behandelingen (3/beh) | B22: =_xlfn.XLOOKUP($B$3, tblInvul[Bedrijfsnr], tblInvul[Orbenin lactation behandelingen (3/beh)]) -> 8
A23: Totaal aantal behandelingen | B23: =_xlfn.XLOOKUP($B$3, tblInvul[Bedrijfsnr], tblInvul[Totaal aantal behandelingen (Medirund)]) -> 17
A25: % mastitisbehandeling (obv Medirund) | B25: =_xlfn.XLOOKUP($B$3, tblInvul[Bedrijfsnr], tblInvul[% Mastitis behandeling (obv Medirund)]) -> 11.25827815
A26: Aantal BO/jaar | B26: =_xlfn.XLOOKUP($B$3, tblInvul[Bedrijfsnr], tblInvul[Aantal BO/jaar]) -> 3
A27: % 1e keus uierinjector | B27: =_xlfn.XLOOKUP($B$3, tblInvul[Bedrijfsnr], tblInvul[% 1e keus uierinjector]) -> 47.05882353
A28: % 2e keus uierinjector | B28: =_xlfn.XLOOKUP($B$3, tblInvul[Bedrijfsnr], tblInvul[% 2e keus uierinjector]) -> 52.94117647
A36: % koeien drooggezet | B36: =_xlfn.XLOOKUP($B$3, tblInvul[Naam], tblInvul[% koeien drooggezet]) -> 
A37: % koeien gesealed | B37: =_xlfn.XLOOKUP($B$3, tblInvul[Naam], tblInvul[% koeien gesealed]) -> 
A38: DS % Nieuwe infecties | B38: =_xlfn.XLOOKUP($B$3, tblInvul[Naam], tblInvul[DS % Nieuwe infecties]) -> 
A39: DS % Genezen | B39: =_xlfn.XLOOKUP($B$3, tblInvul[Naam], tblInvul[DS % Genezen]) -> 

Sheet Robotmelken en uiergezondheid
A1: Robot | B1: Ja/Nee
A3: Rijlabels | B3: Aantal bedrijven | C3: Gemiddelde van DDD Bedrijf | D3: Gemiddelde van DDD Droogzetters | E3: Gemiddelde van % koeien drooggezet | F3: Gemiddelde van % koeien gesealed | G3: Gemiddelde van DDD Mastitis injectoren | H3: Gemiddelde van % Mastitis behandeling (obv Medirund) | I3: Gemiddelde van % 1e keus uierinjector | J3: Gemiddelde van % 2e keus uierinjector | K3: Gemiddelde van DDD Injectie
A4: Ja | B4: 8 | C4: 2.1025 | D4: 1.04625 | E4: 19.97772485 | F4: 26.66008149 | G4: 0.41125 | H4: 21.4479241 | I4: 20.83865271 | J4: 66.66134729 | K4: 0.63375
A5: Nee | B5: 6 | C5: 2.081666667 | D5: 1.105 | E5: 28.49047324 | F5: 40.00521774 | G5: 0.3266666667 | H5: 17.97195981 | I5: 27.6844071 | J5: 72.3155929 | K5: 0.56
A6: Eindtotaal | B6: 14 | C6: 2.093571429 | D6: 1.071428571 | E6: 23.62604558 | F6: 32.3794256 | G6: 0.375 | H6: 19.95822512 | I6: 23.77254745 | J6: 69.08459541 | K6: 0.6021428571

Sheet Eerste Tweede keuze
A2: Dierenarts | B2: (Alle)
A3: Robot | B3: (Alle)
A4: Biologisch | B4: (Alle)
A5: Vaccinatie | B5: (Alle)
A7: Rijlabels | B7: DD Mastitis injectoren | C7: % behandeling mastitis | D7: % 1e keuze uierinjector | E7: % 2e keuze uierinjector | F7: DD Droogzetters | G7: % drooggezet | H7: % gesealed
A8: 1 | B8: 0.11 | C8: 10 | D8: 0 | E8: 100 | F8: 0 | G8: 0 | H8: 0
A9: 2 | B9: 0.33 | C9: 25.28735632 | D9: 0 | E9: 100 | F9: 1.56 | G9: 51.72413793 | H9: 0
A10: 3 | B10: 0.29 | C10: 11.25827815 | D10: 47.05882353 | E10: 52.94117647 | F10: 0.89 | G10: 31.78807947 | H10: 58.94039735
A11: 4 | B11: 0.14 | C11: 12.63157895 | D11: 0 | E11: 100 | F11: 1.67 | G11: 33.15789474 | H11: 0
A12: 5 | B12: 0.54 | C12: 36.36363636 | D12: 0 | E12: 100 | F12: 0.96 | G12: 32.72727273 | H12: 81.81818182
A13: 6 | B13: 0.16 | C13: 3.2 | D13: 100 | E13: 0 | F13: 1.05 | G13: 12 | H13: 72
A14: 7 | B14: 0 | C14: 0 | D14: 0 | E14: 0 | F14: 1.19 | G14: 16.48351648 | H14: 3.296703297
A15: 8 | B15: 0.27 | C15: 22.85714286 | D15: 0 | E15: 100 | F15: 1.36 | G15: 21.42857143 | H15: 85.71428571
A16: 9 | B16: 1.12 | C16: 69.85018727 | D16: 3.217158177 | E16: 96.78284182 | F16: 1.01 | G16: 8.426966292 | H16: 50.56179775
A17: 10 | B17: 0.32 | C17: 7.476635514 | D17: 100 | E17: 0 | F17: 0.81 | G17: 19.62616822 | H17: 0
A18: 11 | B18: 0.72 | C18: 26.47058824 | D18: 44.44444444 | E18: 55.55555556 | F18: 1.27 | G18: 22.05882353 | H18: 0
A19: 12 | B19: 0.5 | C19: 23.59550562 | D19: 19.04761905 | E19: 80.95238095 | F19: 0.5 | G19: 11.79775281 | H19: 33.70786517
A20: 13 | B20: 0.5 | C20: 19.09090909 | D20: 19.04761905 | E20: 80.95238095 | F20: 0.5 | G20: 9.545454545 | H20: 27.27272727
A21: 14 | B21: 0.25 | C21: 11.33333333 | D21: 0 | E21: 100 | F21: 2.23 | G21: 60 | H21: 40
A22: Eindtotaal | B22: 5.25 | C22: 279.4151517 | D22: 332.8156642 | E22: 967.1843358 | F22: 15 | G22: 330.7646382 | H22: 453.3119584

Sheet DAP
A1: Naam | B1: (Alle)
A2: Dierenarts | B2: (Alle)
A3: Biologisch | B3: (Alle)
A4: Vaccinatie | B4: (Alle)
A5: Robot | B5: (Alle)
A7: Gemiddelde van DDD Droogzetters | B7: Gemiddelde van % koeien drooggezet | C7: Gemiddelde van % koeien gesealed | D7: Gemiddelde van DDD Mastitis injectoren | E7: Gemiddelde van % Mastitis behandeling (obv Medirund) | F7: Som van % 2e keus uierinjector
A8: 1.071428571 | B8: 23.62604558 | C8: 32.3794256 | D8: 0.375 | E8: 19.95822512 | F8: 967.1843358

Sheet Praktijk DDD

Sheet Praktijk Mastitis

Sheet Praktijk Celgetal

Sheet Praktijk Droogstand
